fUSD/lending_fUSD_20250716
["ID","MTS","AMOUNT","RATE_DAILY","PERIOD"]
[372553464,1752682232835,-3160.97277002,0.00019693,2]
[372553465,1752682232845,-1000.0,0.000198,2]
[372553466,1752682232856,-6539.0656,0.000198,2]
[372553467,1752682232867,-779.54256218,0.00019899,2]
[372553468,1752682232878,-349.43,0.0001999,2]
[372553469,1752682232888,-200.0,0.0002,7]
[372553470,1752682232899,-500.0,0.000201,7]
[372553471,1752682232910,-232.4172377,0.00020157,2]
[372553472,1752682232920,-250.0,0.0002016,2]
[372553473,1752682232931,-300.0,0.0002016,2]
[372553474,1752682232941,-1000.0,0.0002016,2]
[372553475,1752682232951,-168.0,0.00020173,2]
[372553476,1752682232961,-171.37,0.00020187,2]
[372553477,1752682232971,-1000.0,0.000202,7]
[372553478,1752682232981,-185.54,0.00020242,2]
[372553479,1752682232994,-779.54256218,0.00020266,2]
[372553480,1752682233004,-1603.996572,0.00020291,8]
[372553481,1752682233014,-1484.7865,0.000203,2]
[372553482,1752682233024,-1500.0,0.000203,7]
[372553483,1752682233035,-151.260736,0.000204,2]
[372553484,1752682233047,-167.055493,0.000204,2]
[372553485,1752682233057,-167.055493,0.000204,2]
[372553486,1752682233068,-151.0,0.000204,2]
[372553487,1752682233079,-151.0,0.000204,2]
[372553488,1752682233089,-151.0,0.000204,2]
[372553489,1752682233100,-151.0,0.000204,2]
[372553490,1752682233110,-151.0,0.000204,2]
[372553491,1752682233121,-151.0,0.000204,2]
[372553492,1752682233131,-442.890798,0.000204,2]
[372553493,1752682233142,-152.347698,0.000204,2]
[372553494,1752682233151,-152.347698,0.000204,2]
[372553495,1752682233162,-2000.0,0.000204,7]
[372553496,1752682233174,-151.0,0.00020406,2]
[372553497,1752682233185,-151.0,0.00020406,2]
[372553498,1752682233195,-151.0,0.00020406,2]
[372553499,1752682233207,-3986.5679,0.00020447,2]
[372553500,1752682233217,-779.54256222,0.00020463,2]
[372553501,1752682233228,-151.0,0.00020466,2]
[372553502,1752682233241,-167.055493,0.00020466,2]
[372553503,1752682233252,-167.055493,0.00020466,2]
[372553504,1752682233263,-151.0,0.00020466,2]
[372553505,1752682233274,-151.0,0.00020466,2]
[372553506,1752682233284,-151.0,0.00020466,2]
[372553507,1752682233295,-151.0,0.00020466,2]
[372553508,1752682233305,-151.0,0.00020466,2]
[372553509,1752682233315,-151.0,0.00020466,2]
[372553510,1752682233325,-442.890798,0.00020466,2]
[372553511,1752682233339,-152.347698,0.00020466,2]
[372553512,1752682233350,-152.347698,0.00020466,2]
[372553513,1752682233360,-1243.55598,0.000205,2]
[372553514,1752682233371,-2500.0,0.000205,7]
[372553515,1752682233381,-150.0,0.00020505,2]
[372553516,1752682233392,-151.0,0.00020506,2]
[372553517,1752682233546,-151.0,0.00020506,2]
[372553518,1752682233557,-151.0,0.00020506,2]
[372553519,1752682233568,-151.0,0.00020506,2]
[372553520,1752682233578,-151.0,0.00020506,2]
[372553521,1752682233588,-151.0,0.00020506,2]
[372553522,1752682233598,-151.0,0.00020506,2]
[372553523,1752682233608,-151.0,0.00020506,2]
[372553524,1752682233618,-151.0,0.00020506,2]
[372553525,1752682233628,-151.0,0.00020506,2]
[372553526,1752682233638,-167.055493,0.00020506,2]
[372553527,1752682233648,-167.055493,0.00020506,2]
[372553528,1752682233658,-151.0,0.00020506,2]
[372553529,1752682233668,-151.0,0.00020506,2]
[372553530,1752682233678,-151.0,0.00020506,2]
[372553531,1752682233687,-151.0,0.00020506,2]
[372553532,1752682233697,-151.0,0.00020506,2]
[372553533,1752682233708,-151.0,0.00020506,2]
[372553534,1752682233718,-442.890798,0.00020506,2]
[372553535,1752682233728,-152.347698,0.00020506,2]
[372553536,1752682233738,-152.347698,0.00020506,2]
[372553537,1752682233748,-3484.17357044,0.00020535,2]
[372553540,1752682237782,-896.10363,0.00020535,2]
[372553544,1752682237963,-1254.14236844,0.00020535,2]
[372553546,1752682237977,-200.0,0.0002054,2]
[372553548,1752682237987,-500.0,0.00020547,2]
[372553549,1752682237999,-500.0,0.00020547,2]
[372553550,1752682238007,-369.41598744,0.00020547,2]
[372553551,1752682238017,-963.76,0.00020548,2]
[372553552,1752682238026,-172.0,0.00020548,2]
[372553553,1752682238035,-164.63,0.00020548,2]
[372553554,1752682238045,-357.21,0.00020548,2]
[372553555,1752682238054,-164.63,0.00020548,2]
[372553556,1752682238063,-164.63,0.00020548,2]
[372553557,1752682238072,-2500.0,0.00020565,2]
[372553558,1752682238082,-168.0,0.00020571,2]
[372553559,1752682238091,-157.91435226,0.00020599,2]
[372553560,1752682238100,-2771.7590123,0.00020599,2]
[372553561,1752682238252,-2771.75901221,0.000206,2]
[372553562,1752682238263,-1243.55598,0.000206,2]
[372553563,1752682238273,-500.0,0.000206,7]
[372553564,1752682238282,-157.91435225,0.000206,2]
[372553565,1752682238292,-2771.75901221,0.00020601,2]
[372553566,1752682238302,-157.91435225,0.00020601,2]
[372553567,1752682238311,-2771.75901221,0.00020601,2]
[372553568,1752682238323,-151.0,0.00020602,2]
[372553569,1752682238335,-167.055493,0.00020602,2]
[372553570,1752682238348,-167.055493,0.00020602,2]
[372553571,1752682238358,-151.0,0.00020602,2]
[372553572,1752682238367,-151.0,0.00020602,2]
[372553573,1752682238377,-151.0,0.00020602,2]
[372553574,1752682238386,-151.0,0.00020602,2]
[372553575,1752682238396,-151.0,0.00020602,2]
[372553576,1752682238406,-442.890798,0.00020602,2]
[372553577,1752682238418,-152.347698,0.00020602,2]
[372553578,1752682238428,-152.347698,0.00020602,2]
[372553579,1752682238437,-1253.54937843,0.00020602,2]
[372553582,1752682238450,-1518.20963378,0.00020602,2]
[372553584,1752682238459,-157.91435225,0.00020603,2]
[372553585,1752682238469,-2771.75901221,0.00020603,2]
[372553588,1752682238479,-157.91435225,0.00020604,2]
[372553590,1752682238490,-2771.75901221,0.00020604,2]
[372553592,1752682238500,-2771.75901221,0.00020604,2]
[372553594,1752682238510,-157.91435225,0.00020605,2]
[372553596,1752682238520,-2771.75901221,0.00020605,2]
[372553598,1752682238529,-510.56738104,0.00020606,2]
[372553600,1752682238539,-5000.0,0.00020606,2]
[372553601,1752682238554,-151.0,0.00020606,2]
[372553603,1752682238564,-151.0,0.00020606,2]
[372553605,1752682238573,-151.0,0.00020606,2]
[372553607,1752682238583,-151.0,0.00020606,2]
[372553608,1752682238593,-151.0,0.00020606,2]
[372553609,1752682238602,-151.0,0.00020606,2]
[372553610,1752682238612,-151.0,0.00020606,2]
[372553611,1752682238621,-151.0,0.00020606,2]
[372553612,1752682238631,-151.0,0.00020606,2]
[372553613,1752682238641,-151.0,0.00020606,2]
[372553614,1752682238650,-151.0,0.00020606,2]
[372553615,1752682238660,-151.0,0.00020606,2]
[372553617,1752682238669,-167.055493,0.00020606,2]
[372553619,1752682238679,-167.055493,0.00020606,2]
[372553621,1752682238688,-167.055493,0.00020606,2]
[372553623,1752682238698,-167.055493,0.00020606,2]
[372553625,1752682238707,-167.055493,0.00020606,2]
[372553627,1752682238717,-167.055493,0.00020606,2]
[372553629,1752682238727,-151.0,0.00020606,2]
[372553631,1752682238736,-151.0,0.00020606,2]
[372553633,1752682238748,-151.0,0.00020606,2]
[372553635,1752682238758,-151.0,0.00020606,2]
[372553637,1752682238767,-152.025612,0.00020606,2]
[372553639,1752682238783,-151.0,0.00020606,2]
[372553641,1752682238800,-195.535789,0.00020606,2]
[372553643,1752682238810,-151.0,0.00020606,2]
[372553645,1752682238820,-151.0,0.00020606,2]
[372553647,1752682238830,-151.0,0.00020606,2]
[372553649,1752682238839,-442.890798,0.00020606,2]
[372553651,1752682238849,-442.890798,0.00020606,2]
[372553653,1752682238858,-154.76792459,0.00020606,2]
[372553680,1752682239113,-288.12287341,0.00020606,2]
[372553682,1752682239124,-152.347698,0.00020606,2]
[372553684,1752682239133,-152.347698,0.00020606,2]
[372553686,1752682239143,-152.347698,0.00020606,2]
[372553688,1752682239152,-152.347698,0.00020606,2]
[372553690,1752682239162,-152.347698,0.00020606,2]
[372553692,1752682239171,-152.347698,0.00020606,2]
[372553694,1752682239181,-157.91435225,0.00020606,2]
[372553696,1752682239191,-157.10953125,0.00020606,2]
[372553698,1752682239201,-168.9024252,0.00020606,2]
[372553700,1752682239211,-2771.75901221,0.00020606,2]
[372553702,1752682239220,-281.43217003,0.00020606,2]
[372553704,1752682239232,-187.96846452,0.00020606,2]
[372553707,1752682239244,-180.22888038,0.00020606,2]
[372553708,1752682239254,-3543.15113554,0.00020606,2]
[372553711,1752682239267,-434.95931774,0.00020606,2]
[372553713,1752682239278,-2555.34306003,0.00020606,2]
[372553715,1752682239290,-1710.88545251,0.00020606,2]
[372553717,1752682239300,-510.56738104,0.00020606,2]
[372553719,1752682239309,-2079.878,0.00020665,2]
[372553721,1752682239319,-1685.0,0.00020665,2]
[372553723,1752682239328,-562.0,0.00020665,2]
[372553725,1752682239339,-1286.0,0.00020665,2]
[372553727,1752682239350,-597.304,0.00020665,2]
[372553729,1752682239361,-1166.0,0.00020665,2]
[372553732,1752682239371,-739.01165485,0.00020665,2]
[372553734,1752682239385,-149.98834515,0.00020665,2]
[372553736,1752682239395,-232.458,0.00020675,2]
[372553738,1752682239405,-2420.20487285,0.00020675,2]
[372553739,1752682239418,-2176.7416173,0.00020675,2]
[372553741,1752682239431,-74.74450985,0.00020675,2]
[372553743,1752682239440,-1935.34111815,0.00020682,7]
[372553745,1752682239452,-921.249072,0.00020682,7]
[372553795,1752682239929,-710.23838226,0.00020682,7]
[372553825,1752682240226,-4801.51700886,0.00020682,7]
[372553827,1752682240238,-4131.65441873,0.00020682,7]
[372553829,1752682240250,-210.72748344,0.00020682,7]
[372553831,1752682240259,-838.7287696,0.00020682,7]
[372553833,1752682240269,-2980.0,0.00020685,2]
[372553835,1752682240279,-151.0,0.00020685,2]
[372553837,1752682240289,-151.0,0.00020685,2]
[372553839,1752682240300,-151.0,0.00020685,2]
[372553841,1752682240310,-151.0,0.00020685,2]
[372553843,1752682240320,-151.0,0.00020685,2]
[372553845,1752682240331,-151.0,0.00020685,2]
[372553847,1752682240342,-151.0,0.00020685,2]
[372553849,1752682240352,-151.0,0.00020685,2]
[372553851,1752682240362,-151.0,0.00020685,2]
[372553853,1752682240372,-167.055493,0.00020685,2]
[372553855,1752682240382,-167.055493,0.00020685,2]
[372553857,1752682240391,-151.0,0.00020685,2]
[372553859,1752682240402,-442.890798,0.00020685,2]
[372553861,1752682240413,-152.347698,0.00020685,2]
[372553863,1752682240423,-152.347698,0.00020685,2]
[372553865,1752682240433,-8242.59823138,0.0002069,2]
[372553983,1752682241748,-1484.78649278,0.0002069,2]
[372553985,1752682241760,-1734.85625653,0.0002069,2]
[372554133,1752682243136,-1000.0,0.00020506,2]
[372554134,1752682243146,-500.0,0.00020599,2]
[372554135,1752682243156,-500.0,0.00020599,2]
[372554136,1752682243165,-500.0,0.00020599,2]
[372554137,1752682243175,-500.0,0.00020599,2]
[372554138,1752682243185,-645.59066753,0.00020599,2]
[372554139,1752682243194,-500.0,0.00020599,2]
[372554141,1752682243204,-460.41194943,0.00020599,2]
[372554143,1752682243215,-25708.56414687,0.0002069,2]
[372554145,1752682243225,-476.61752775,0.0002069,7]
[372554147,1752682243235,-12500.0,0.00020691,7]
[372554149,1752682243245,-150.0,0.00020694,2]
[372554151,1752682243255,-150.0,0.00020694,2]
[372554153,1752682243265,-200.16342423,0.00020694,2]
[372554155,1752682243275,-150.0,0.00020694,2]
[372554157,1752682243285,-150.0,0.00020694,2]
[372554159,1752682243294,-150.0,0.00020694,2]
[372554161,1752682243304,-500.0,0.00020694,2]
[372554163,1752682243314,-150.0,0.00020694,2]
[372554166,1752682243324,-500.0,0.00020694,2]
[372554169,1752682243334,-150.0,0.00020694,2]
[372554173,1752682243348,-150.0,0.00020694,2]
[372554176,1752682243357,-150.0,0.00020694,2]
[372554179,1752682243367,-150.0,0.00020694,2]
[372554181,1752682243377,-500.0,0.00020694,2]
[372554183,1752682243387,-500.0,0.00020694,2]
[372554185,1752682243397,-150.0,0.00020694,2]
[372554187,1752682243407,-500.0,0.00020694,2]
[372554189,1752682243418,-150.0,0.00020694,2]
[372554191,1752682243428,-1491.0,0.00020694,2]
[372554193,1752682243438,-500.0,0.00020694,2]
[372554195,1752682243448,-500.0,0.00020694,2]
[372554197,1752682243458,-500.0,0.00020694,2]
[372554199,1752682243468,-500.0,0.00020694,2]
[372554201,1752682243478,-150.0,0.00020694,2]
[372554203,1752682243487,-500.0,0.00020694,2]
[372554205,1752682243499,-447.0,0.00020694,2]
[372554207,1752682243509,-150.0,0.00020694,2]
[372554209,1752682243519,-500.0,0.00020694,2]
[372554211,1752682243529,-150.0,0.00020694,2]
[372554213,1752682243538,-150.0,0.00020694,2]
[372554216,1752682243548,-500.0,0.00020694,2]
[372554217,1752682243559,-249.82139547,0.00020694,2]
[372554220,1752682243568,-500.0,0.00020694,2]
[372554222,1752682243578,-500.0,0.00020694,2]
[372554224,1752682243588,-150.0,0.00020694,2]
[372554226,1752682243598,-500.0,0.00020694,2]
[372554228,1752682243608,-3884.0,0.00020694,2]
[372554230,1752682243618,-150.0,0.00020694,2]
[372554232,1752682243629,-500.0,0.00020694,2]
[372554234,1752682243639,-2071.0,0.00020694,2]
[372554236,1752682243650,-211.54228772,0.00020696,2]
[372554238,1752682243660,-155.75,0.00020696,2]
[372554240,1752682243670,-155.75,0.00020696,2]
[372554242,1752682243681,-155.75,0.00020696,2]
[372554244,1752682243690,-251.741496,0.00020699,2]
[372554246,1752682243700,-151.0,0.00020699,2]
[372554248,1752682243711,-151.0,0.00020699,2]
[372554250,1752682243721,-192.542152,0.00020699,2]
[372554253,1752682243731,-151.0,0.00020699,2]
[372554255,1752682243742,-151.0,0.00020699,2]
[372554257,1752682243755,-151.0,0.00020699,2]
[372554259,1752682243765,-151.0,0.00020699,2]
[372554261,1752682243775,-167.055493,0.00020699,2]
[372554263,1752682243785,-167.055493,0.00020699,2]
[372554265,1752682243795,-151.0,0.00020699,2]
[372554267,1752682243805,-295687.39076943,0.00020699,2]
[372554269,1752682243815,-442.890798,0.00020699,2]
[372554271,1752682243825,-152.347698,0.00020699,2]
[372554273,1752682243834,-152.347698,0.00020699,2]
[372554275,1752682243844,-532.49927007,0.00020699,2]
[372554277,1752682243855,-254.34175331,0.00020699,2]
[372554279,1752682243865,-500.0,0.00020699,2]
[372554281,1752682243876,-399.76060457,0.00020699,2]
[372554283,1752682243886,-187.20281664,0.00020699,2]
[372554286,1752682243897,-500.0,0.00020699,2]
[372554288,1752682243907,-500.0,0.00020699,2]
[372554290,1752682243918,-1004.8624,0.00020699,2]
[372554292,1752682243927,-151.0,0.000207,2]
[372554294,1752682243937,-12500.0,0.000207,7]
[372554296,1752682243946,-500.0,0.000207,7]
[372554298,1752682243956,-666.0,0.00020705,2]
[372554300,1752682243966,-81385.08060051,0.00020705,2]
[372554302,1752682243976,-6316.32,0.00020705,2]
[372554304,1752682243986,-150.0,0.00020705,2]
[372554306,1752682243998,-150.0,0.00020705,2]
[372554308,1752682244008,-54149.16718346,0.00020706,2]
[372554546,1752682246494,-156.50127217,0.00020599,2]
[372554548,1752682246506,-9567.89872783,0.00020706,2]
[372554551,1752682246518,-23206.0923158,0.00020706,2]
[372554553,1752682246527,-35747.87870906,0.00020706,2]
[372554558,1752682246570,-2139.18470623,0.00020706,2]
[372554560,1752682246582,-7941.48910001,0.00020706,2]
[372554562,1752682246594,-1257.54874438,0.00020706,2]
[372554568,1752682246644,-16116.96981039,0.00020706,2]
[372558611,1752682290357,250.0,0.00015,2]
[372558802,1752682292321,300.0,0.00017,2]
[372560499,1752682320544,259.0,0.00023101,120]
[372560500,1752682430215,-5511.0,0.000199,5]
[372560501,1752682448538,5735.03325508,0.00023101,120]
[372560502,1752682512140,-377.0,0.00018479,3]
[372560503,1752682525912,-150.0,0.00019412,2]
[372560504,1752682541998,10000.0,0.000231,30]
[372560505,1752682563299,5280.0,0.000231,30]
[372560509,1752682602972,-2334.434622,0.00020291,8]
[372560510,1752682603013,-18868.82825664,0.00021,8]
[372560512,1752682701162,-203.1470536,0.00022714,19]
[372560513,1752682709457,-4538.02177171,0.000231,30]
[372560514,1752682709487,-5000.0,0.000231,30]
[372560515,1752682709513,-4208.83117469,0.000231,30]
[372560517,1752682812641,194.4,0.00016712,2]
[372560520,1752682999964,184.33263746,0.00016556,2]
[372560521,1752683077251,1395.275616,0.00018108,2]
[372560522,1752683124788,1563.84373004,0.00018,3]
[372560523,1752683124810,2272.15626996,0.00018,3]
[372560524,1752683143996,37657.81223637,0.0002,30]
[372560525,1752683152865,402.80213677,0.00022901,120]
[372560526,1752683167816,-839.02,0.00018397,2]
[372560527,1752683167840,-1.18,0.00018435,2]
[372560537,1752683270509,180.63,0.00013699,2]
[372560539,1752683279709,512.0,0.0001757,2]
[372560540,1752683299820,3741.49258715,0.00012,30]
[372560541,1752683319191,7035.21373004,0.000151,2]
[372560542,1752683319214,8074.42225041,0.000151,2]
[372560545,1752683360184,-559.0,0.00018383,2]
[372560546,1752683360205,-163.32,0.00018435,2]
[372560547,1752683360225,-250.0,0.00018436,2]
[372560548,1752683360247,-200.0,0.00018438,2]
[372560549,1752683360275,-252.0,0.00018481,3]
[372560550,1752683360299,-2301.98691373,0.00018536,2]
[372560552,1752683424565,608.98936,0.00023,30]
[372560553,1752683428059,608.98936,0.00023,30]
[372560554,1752683428924,608.98936,0.00023,30]
[372560555,1752683429184,608.98936,0.00023,30]
[372560556,1752683429857,29669.4069028,0.00023,30]
[372560557,1752683430834,608.9894,0.00023,30]
[372560571,1752683431962,-250.0,0.00018308,2]
[372560572,1752683431973,-168.0,0.00018427,3]
[372560573,1752683431983,-1569.849393,0.00018536,2]
[372560574,1752683431997,-786.43369327,0.00018536,2]
[372560575,1752683432007,-150.0,0.00018616,2]
[372560576,1752683432016,-150.0,0.00018616,2]
[372560577,1752683432025,-150.0,0.00018616,2]
[372560578,1752683432035,-1000.0,0.0001863,2]
[372560579,1752683432044,-674.52090713,0.00018689,2]
[372560580,1752683432214,-166.66666667,0.000187,2]
[372560581,1752683432252,-166.36,0.00018896,2]
[372560583,1752683432263,-830.01395428,0.000189,2]
[372560586,1752683432272,-5511.0,0.000189,5]
[372560588,1752683432282,-348.65390107,0.0001901,7]
[372560590,1752683432292,-830.01395404,0.00019038,2]
[372560592,1752683432302,-1200.0,0.00019096,2]
[372560594,1752683432311,-1200.0,0.00019098,2]
[372560596,1752683432321,-300.0,0.00019098,2]
[372560598,1752683432331,-265.71528795,0.00019165,2]
[372560600,1752683432340,-830.01395404,0.00019176,2]
[372560602,1752683432350,-1000.0,0.00019178,2]
[372560604,1752683432359,-3307.43,0.00019178,2]
[372560606,1752683432370,-1852.22155774,0.00019305,2]
[372560608,1752683432380,-830.01395404,0.00019314,2]
[372560610,1752683432390,-839.02,0.00019317,2]
[372560612,1752683432399,-1314.56,0.00019318,2]
[372560614,1752683432408,-1314.56,0.00019328,2]
[372560616,1752683432418,-9043.351484,0.00019328,2]
[372560619,1752683432438,-956.638516,0.00019328,2]
[372560621,1752683432448,-284.14,0.00019328,2]
[372560623,1752683432458,-1314.56,0.00019338,2]
[372560625,1752683432467,-384.38,0.00019338,2]
[372560627,1752683432478,-1314.56,0.00019348,2]
[372560629,1752683432487,-150.99,0.00019359,2]
[372560631,1752683432497,-1314.56,0.00019359,2]
[372560633,1752683432507,-884.87,0.00019359,2]
[372560635,1752683432516,-1314.56,0.00019369,2]
[372560637,1752683432526,-1314.56,0.00019379,2]
[372560639,1752683432535,-724.12105704,0.00019389,2]
[372560651,1752683432670,-590.43894296,0.00019389,2]
[372560653,1752683432679,-357.52,0.00019394,2]
[372560655,1752683432689,-9404.75353231,0.00019395,2]
[372560657,1752683432701,-1314.56,0.00019399,2]
[372560658,1752683432712,-323.62144473,0.000194,2]
[372560659,1752683432723,-295.99999997,0.000194,2]
[372560660,1752683432735,-2288.60690714,0.000194,2]
[372560661,1752683436144,40696.8848226,0.00023,30]
[372560675,1752683438307,-0.65527432,0.00018356,2]
[372560679,1752683438336,-417.53378929,0.00018356,2]
[372560689,1752683438421,-468.5621701,0.00018356,2]
[372560692,1752683438433,-613.24876629,0.00018356,2]
[372560694,1752683438443,-1902.28949271,0.000194,2]
[372560949,1752683441162,-392.885,0.000194,2]
[372560954,1752683441203,-3406.97653788,0.000194,2]
[372560956,1752683441216,-5114.72173051,0.000194,2]
[372561147,1752683442931,-730.48934815,0.000194,2]
[372561152,1752683442943,-455.88402149,0.000194,2]
[372561186,1752683443196,-372.77525242,0.000194,2]
[372561476,1752683446191,-19919.09109849,0.000194,2]
[372561478,1752683446201,-500.96693686,0.000194,2]
[372561480,1752683446210,-500.96693686,0.000194,2]
[372561482,1752683446221,-500.96693686,0.000194,2]
[372561484,1752683446230,-217.82354994,0.000194,2]
[372561486,1752683446240,-272.61260682,0.000194,2]
[372561488,1752683446249,-500.0,0.00019401,2]
[372561490,1752683446260,-617.61333493,0.00019401,2]
[372561492,1752683446269,-600.0,0.00019401,2]
[372561494,1752683446279,-600.0,0.00019401,2]
[372561496,1752683446288,-500.0,0.00019401,2]
[372561498,1752683446298,-600.0,0.00019401,2]
[372561500,1752683446307,-500.0,0.00019401,2]
[372561502,1752683446316,-600.0,0.00019401,2]
[372561504,1752683446326,-500.0,0.00019401,2]
[372561506,1752683446335,-500.0,0.00019401,2]
[372561508,1752683446346,-600.0,0.00019401,2]
[372561510,1752683446356,-500.0,0.00019401,2]
[372561512,1752683446366,-600.0,0.00019401,2]
[372561514,1752683446376,-156.587,0.00019401,2]
[372561516,1752683446386,-600.0,0.00019401,2]
[372561518,1752683446396,-500.0,0.00019401,2]
[372561520,1752683446405,-600.0,0.00019401,2]
[372561522,1752683446415,-600.0,0.00019401,2]
[372561524,1752683446424,-151.0,0.00019401,2]
[372561526,1752683446437,-600.0,0.00019401,2]
[372561528,1752683446447,-151.0,0.00019401,2]
[372561530,1752683446457,-600.0,0.00019401,2]
[372561532,1752683446466,-151.0,0.00019401,2]
[372561534,1752683446477,-600.0,0.00019401,2]
[372561536,1752683446487,-500.0,0.00019401,2]
[372561538,1752683446503,-151.0,0.00019401,2]
[372561540,1752683446518,-600.0,0.00019401,2]
[372561542,1752683446528,-500.0,0.00019401,2]
[372561544,1752683446537,-151.0,0.00019401,2]
[372561546,1752683446547,-600.0,0.00019401,2]
[372561548,1752683446558,-500.0,0.00019401,2]
[372561550,1752683446568,-500.0,0.00019401,2]
[372561552,1752683446577,-151.0,0.00019401,2]
[372561554,1752683446587,-600.0,0.00019401,2]
[372561556,1752683446597,-500.0,0.00019401,2]
[372561558,1752683446606,-500.0,0.00019401,2]
[372561560,1752683446616,-600.0,0.00019401,2]
[372561562,1752683446625,-500.0,0.00019401,2]
[372561564,1752683446634,-500.0,0.00019401,2]
[372561566,1752683446643,-151.0,0.00019401,2]
[372561568,1752683446653,-400.0,0.00019401,2]
[372561570,1752683446662,-500.0,0.00019401,2]
[372561572,1752683446675,-500.0,0.00019401,2]
[372561574,1752683446685,-151.0,0.00019401,2]
[372561576,1752683446697,-500.0,0.00019401,2]
[372561578,1752683446708,-500.0,0.00019401,2]
[372561580,1752683446718,-151.0,0.00019401,2]
[372561582,1752683446727,-500.0,0.00019401,2]
[372561584,1752683446738,-500.0,0.00019401,2]
[372561586,1752683446747,-500.0,0.00019401,2]
[372561588,1752683446758,-151.0,0.00019401,2]
[372561590,1752683446769,-500.0,0.00019401,2]
[372561592,1752683446779,-500.0,0.00019401,2]
[372561594,1752683446789,-500.0,0.00019401,2]
[372561596,1752683446799,-151.0,0.00019401,2]
[372561598,1752683446808,-500.0,0.00019401,2]
[372561600,1752683446818,-500.0,0.00019401,2]
[372561602,1752683446828,-151.0,0.00019401,2]
[372561604,1752683446837,-500.0,0.00019401,2]
[372561606,1752683446847,-500.0,0.00019401,2]
[372561608,1752683446856,-500.0,0.00019401,2]
[372561610,1752683446867,-500.0,0.00019401,2]
[372561612,1752683446876,-500.0,0.00019401,2]
[372561614,1752683446886,-500.0,0.00019401,2]
[372561616,1752683446896,-500.0,0.00019401,2]
[372561618,1752683446905,-500.0,0.00019401,2]
[372561620,1752683446915,-500.0,0.00019401,2]
[372561622,1752683446924,-500.0,0.00019401,2]
[372561624,1752683446933,-500.0,0.00019401,2]
[372561626,1752683446942,-500.0,0.00019401,2]
[372561628,1752683446951,-500.0,0.00019401,2]
[372561630,1752683446961,-423.68492096,0.00019401,2]
[372561631,1752683446970,-1314.56,0.00019409,2]
[372561633,1752683446980,-7196.61388857,0.00019411,2]
[372561635,1752683446990,-12719.1290766,0.00019413,2]
[372561639,1752683447017,-1638.01500808,0.00019413,2]
[372561643,1752683447040,-1751.56134896,0.00019413,2]
[372561645,1752683447052,-11972.0,0.00019413,2]
[372561687,1752683447464,-5379.76899659,0.00019413,2]
[372561690,1752683447489,-6514.8,0.00019413,2]
[372562147,1752683511552,5000.00000002,0.00023,30]
[372562148,1752683527673,5000.0,0.00022,30]
[372562149,1752683529782,259.0,0.00023101,120]
[372562150,1752683577981,201.40106839,0.00022901,120]
[372562151,1752683625651,5762.96752373,0.00023,30]
[372562152,1752683659491,-200.0,0.00018575,2]
[372562153,1752683659513,-694.08,0.00018647,2]
[372562154,1752683659536,-705.92,0.00018739,2]
[372562157,1752683936197,1925.57774959,0.0001816,2]
[372562158,1752683936219,10000.0,0.0001816,2]
[372562159,1752683936240,10000.0,0.0001816,2]
[372562160,1752683936262,10000.0,0.0001816,2]
[372562161,1752683936283,10000.0,0.0001816,2]